Cogmind - Beta 17 @@@ ROGUE MODE // 2026.06.28 @ 23:44:32 Player: Vikcy6666 Result: Destroyed by G-50 Soldier with Heavy Laser Performance ------------- Evolutions (4) 2000 Regions Visited (6) 1200 Robots Destroyed (51) 255 Value Destroyed (1767) 1767 Prototype IDs (4) 80 Alien Tech Used (0) 0 Bonus (-18) -18 TOTAL SCORE: 5284 Bonus ------- Friendly Fire -18 Cogmind --------- Core Integrity 0/850 Matter 300/300 Energy 520/520 System Corruption 0% Temperature Cool (18) Movement Core (350) Ox6 Location -6/Factory Parts ------- > --- POWER (2) -------- Fission Core Fission Core > --- PROPULSION (4) --- (None) > --- UTILITY (5) ------ Advanced Signal Interpreter > --- WEAPON (4) ------- (None) > --- INVENTORY (5) ---- (None) Peak State ------------ > --- POWER ------------ Light Angular Momentum Engine Micro Fission Core > --- PROPULSION ------- Carbon-fiber Leg Flexi-carbon Leg Improved VSS Leg Improved VSS Leg > --- UTILITY ---------- Advanced Heat Sink Improved Cooling System Advanced Sensor Array Advanced Signal Interpreter Advanced Terrain Scanner > --- WEAPON ----------- Heavy Laser High-powered Shotgun Gauss Rifle Heavy Machine Gun > --- INVENTORY -------- Fission Core Fusion Compressor Kinecellerator Improved Light Armor Plating [Rating: 70] Favorites ----------- Power Deuterium Engine Engine Deuterium Engine Power Core Light Fission Core Propulsion Light Treads Treads Light Treads Leg Flexi-carbon Leg Wheel Compact Wheel Flight Unit Improved Flight Unit Utility Hardened Medium Armor Plating Device Kinecellerator Storage Small Storage Unit Processor Improved Signal Interpreter Hackware System Shield Protection Hardened Medium Armor Plating Weapon High-powered Shotgun Energy Gun Heavy Laser Energy Cannon Light EM Pulse Cannon Ballistic Gun High-powered Shotgun Launcher Advanced EMP Blaster Special Weapon Mining Laser Slashing Weapon Blade Saw Build | -11 -10 -10 -10 -8 -7 -6 ------- Run | Yrd Mat Min Sub Mat Fac Fac Slots Evolved 8 | . . . . 4 2 2 Power 1 | . . . . . 1 . Propulsion 2 | . . . . 2 . . Utility 3 | . . . . 2 . 1 Weapon 2 | . . . . . 1 1 Parts Attached 76 | 5 10 8 5 13 5 30 Power 18 | . 3 1 2 2 . 10 Engine 11 | . 3 1 2 2 . 3 Core 7 | . . . . . . 7 Reactor . | . . . . . . . Propulsion 17 | 2 3 2 2 1 1 6 Treads 5 | . . 2 2 1 . . Leg 8 | 2 1 . . . . 5 Wheel 1 | . . . . . 1 . Hover . | . . . . . . . Flight 3 | . 2 . . . . 1 Utility 19 | 1 1 2 . 6 2 7 Device 10 | . . 1 . 3 1 5 Storage 2 | 1 . . . 1 . . Processor 2 | . . . . 1 . 1 Hackware 1 | . . . . . 1 . Protection 4 | . 1 1 . 1 . 1 Artifact . | . . . . . . . Weapon 22 | 2 3 3 1 4 2 7 Energy Gun 5 | . . . 1 1 . 3 Energy Cannon 2 | . 2 . . . . . Ballistic Gun 12 | 2 1 2 . 2 2 3 Ballistic Cannon . | . . . . . . . Launcher 1 | . . . . 1 . . Special Weapon 1 | . . 1 . . . . Impact Weapon . | . . . . . . . Slashing Weapon 1 | . . . . . . 1 Piercing Weapon . | . . . . . . . Special Melee Weapon . | . . . . . . . Unidentified Prototypes 2 | . 1 . . 1 . . Parts Lost 28 | . . 1 . . 2 25 Power 6 | . . 1 . . 1 4 Propulsion 9 | . . . . . 1 8 Utility 6 | . . . . . . 6 Weapon 7 | . . . . . . 7 Highest Loss Streak 16 | . . 1 . . 1 16 To Critical Strikes . | . . . . . . . Average Backups 5 | 4 7 7 7 4 3 4 Power . | 1 1 . . . . 1 Propulsion . | 2 3 1 2 . . . Utility 1 | . 1 1 2 . 1 2 Weapon 2 | . 1 2 3 3 2 . Tool/Special . | . . . . . . . Unused Backups 17 | . 7 4 . 3 . 3 Power 1 | . . 1 . . . . Propulsion 4 | . 4 . . . . . Utility 6 | . 2 1 . 1 . 2 Weapon 6 | . 1 2 . 2 . 1 Tool/Special . | . . . . . . . Average Slot Usage (%) 95 | . 97 97 100 99 93 90 Engine 9 | . 14 13 14 9 10 4 Core 1 | . . . . . . 5 Treads 23 | . . 24 28 35 28 14 Leg 3 | . 23 . . . . 6 Device 9 | . . 9 . 13 7 13 Storage 7 | . 14 14 14 9 4 . Processor 3 | . . . . 3 7 6 Hackware 1 | . . . . . 2 4 Protection 8 | . 13 4 14 8 7 6 Energy Gun 5 | . . . 3 7 1 8 Energy Cannon 4 | . 2 3 20 2 . . Ballistic Gun 11 | . 24 16 2 4 14 15 Launcher 1 | . . . . 3 5 . Special Weapon 1 | . . 6 . . . . Peak Build Rating 70 | 5 13 11 12 26 31 70 Average Rating 26 | 3 7 10 11 22 29 46 On Entrance 13 | . 5 11 10 12 26 31 Avg Prop Armor Cover (%) 2 | . . . . . 1 2 Naked Turns . | . . . . . . . Heaviest Build 47 | 8 19 21 23 32 46 47 Greatest Support 80 | 20 20 40 40 80 80 65 Greatest Overweight (x) 7 | 2 3 . . . . 7 Average Overweight (x) . | . . . . . . . Largest Inventory Capacity 8 | 8 8 8 8 8 5 5 Average Capacity 6 | 7 8 8 8 5 5 5 Most Carried 8 | 7 8 8 8 7 5 5 Average Carried 5 | 4 7 7 7 4 3 4 Final Capacity 8 | 8 8 8 8 5 5 5 Final Carried 8 | 7 8 8 8 5 5 . Class Distribution -------------------- 49% | Mutant 17% | Skirmisher 15% | Scavenger-Mutant 6% | Gunner 6% | Scavenger-Tank 3% | Scavenger-Skirmisher Dominant Class ---------------- Mutant | -10/Materials Mutant | -10/Mines Mutant | -10/Subcaves Mutant | -8/Materials Gunner | -7/Factory Skirmisher | -6/Factory Resources | -11 -10 -10 -10 -8 -7 -6 ----------- Run | Yrd Mat Min Sub Mat Fac Fac Matter Collected 2217 | 237 107 475 103 251 209 835 Remotely . | . . . . . . . Salvage Created 2115 | . 107 384 44 459 293 828 Parts 130 | . 4 32 2 23 18 51 Haulers Intercepted . | . . . . . . . Recyclers Shooed 5 | . 1 . . 1 1 2 Parts Field Recycled . | . . . . . . . Retrieved Matter . | . . . . . . . Parts Self-Destructed 4 | . . . 4 . . . Prevented . | . . . . . . . Parts Restored . | . . . . . . . Kills | -11 -10 -10 -10 -8 -7 -6 ------- Run | Yrd Mat Min Sub Mat Fac Fac Combat Hostiles Destroyed 33 | . 2 7 1 7 3 13 Guns 29 | . 2 7 . 5 2 13 Cannons 1 | . . . 1 . . . AOE 3 | . . . . 2 1 . Classes Destroyed 12 | . 2 5 1 . 1 3 Worker 5 | . . 1 . 1 1 2 Builder 7 | . . 1 . . 2 4 Recycler 4 | . . 1 . 2 1 . Watcher 2 | . 1 . . . . 1 Swarmer 3 | . . 3 . . . . Cutter 1 | . . . . . . 1 Grunt 17 | . 2 2 . 7 . 6 Sentry 3 | . . 2 . . 1 . Specialist 2 | . . . . . . 2 Hunter 4 | . . . . . 2 2 Programmer 2 | . . . . . . 2 Subdweller 1 | . . . 1 . . . Best Kill Streak 6 | . 2 5 1 3 4 6 Combat Bots Only 5 | . 2 4 1 2 2 5 Max Kills in Single Turn 2 | . 1 2 1 2 2 2 Gunslinging . | . . . . . . . Exploded 1 | . . . . 1 1 . Melee . | . . . . . . . Uniques/NPCs Destroyed . | . . . . . . . Combat | -11 -10 -10 -10 -8 -7 -6 -------- Run | Yrd Mat Min Sub Mat Fac Fac Hostile Shots Fired 444 | . 28 74 4 34 62 242 Missed 144 | . 8 25 1 14 27 69 Hits 300 | . 20 49 3 20 35 173 Melee 12 | . . . . . . 12 Projectile 288 | . 20 49 3 20 35 161 Critical Strikes 11 | . . 1 . 1 1 8 Part Disruptions 5 | . . . . . 2 3 Damage Taken 5029 | . 223 535 64 269 521 3417 Core 1087 | . 21 111 . 20 80 855 Absorbed by Shields 105 | . . . . 105 . . Redirected to Shielding 24 | . 24 . . . . . Core Remaining (%) 82 | 100 . . 47 96 88 . Volleys Fired 174 | . 14 45 7 27 11 70 Largest 4 | . 2 2 2 2 3 4 Hottest 196 | . 40 123 112 113 116 196 Shots Fired 362 | . 28 62 11 42 31 188 Gun 324 | . 28 43 . 38 27 188 Cannon 11 | . . 2 8 1 . . Launcher 7 | . . . . 3 4 . Special 20 | . . 17 3 . . . Kinetic 236 | . 28 43 . 21 20 124 Thermal 80 | . . 17 3 7 7 46 Explosive . | . . . . . . . Electromagnetic 46 | . . 2 8 14 4 18 Robot Hit Streak 12 | . 3 12 3 8 7 10 Robot Miss Streak 6 | . 3 3 2 3 3 6 Penetration Max 1 | . . . . . . 1 Secondary Targets 7 | . . 2 . 1 . 4 Max Gunslinging Chain 1 | . . 1 . 1 . 1 Shots Hit Robots 215 | . 16 29 4 31 19 116 Core Hits 110 | . 6 14 2 19 15 54 Critical Kills . | . . . . . . . Critical Parts Destroyed 2 | . . . . . . 2 Critical Strikes 4 | . . . . . . 4 Burn 1 | . . . . . . 1 Destroy 2 | . . . . . . 2 Sever 1 | . . . . . . 1 Melee Attacks 2 | . . . . . . 2 Impact . | . . . . . . . Slashing 2 | . . . . . . 2 Piercing . | . . . . . . . Sneak Attacks . | . . . . . . . Combat Hostiles . | . . . . . . . Follow-up Attacks . | . . . . . . . Damage Inflicted 4917 | . 173 431 78 889 505 2841 Guns 4087 | . 173 384 . 588 288 2654 Cannons 150 | . . 47 78 25 . . Explosions 662 | . . . . 276 217 169 Melee 13 | . . . . . . 13 Ramming 5 | . . . . . . 5 Kinetic 3013 | . 173 384 . 316 223 1917 Thermal 1007 | . . . . 229 108 670 Explosive . | . . . . . . . Electromagnetic 879 | . . 47 78 344 174 236 Impact . | . . . . . . . Slashing 13 | . . . . . . 13 Piercing . | . . . . . . . Highest Corruption 2 | . . . . 1 2 . Average Corruption 1 | . . . . 1 1 . Corruption Purged 1 | . . . . 1 . . Corruption Blocked . | . . . . . . . Effects 1 | . . . . . 1 . Matter Fused 1 | . . . . . 1 . Overload Shots . | . . . . . . . Overflow Damage 18 | . . . . . . 18 Projectiles . | . . . . . . . Explosions 18 | . . . . . . 18 Melee . | . . . . . . . Knockbacks . | . . . . . . . Impact . | . . . . . . . Kinetic . | . . . . . . . Secondary . | . . . . . . . Self-Inflicted Damage 299 | . . . . 71 167 61 Shots 11 | . . . . 4 6 1 Rammed 3 | . . . . . . 3 Targets Rammed 3 | . . . . . . 3 Kicked . | . . . . . . . Crushed . | . . . . . . . Highest Temperature 602 | . 18 192 12 41 192 602 Average Temperature 110 | . 8 80 10 13 84 210 Received Heat Transfer 1322 | . 120 144 18 134 24 882 Effects 9 | . . . . . . 9 Shutdowns 2 | . . . . . . 2 Energy Bleed 2 | . . . . . . 2 Interference 3 | . . . . . . 3 Damage (minor) 1 | . . . . . . 1 Damage (core) 1 | . . . . . . 1 Siege Activations . | . . . . . . . Martial Activations . | . . . . . . . Shielding Activations . | . . . . . . . Robots Disrupted 1 | . . . . 1 . . Combat Hostiles 1 | . . . . 1 . . Robots Corrupted 1 | . . . . 1 . . Combat Hostiles . | . . . . . . . Parts Fried 4 | . . . 1 2 1 . Impact Corruptions . | . . . . . . . Robots Melted . | . . . . . . . Combat Hostiles . | . . . . . . . Parts Melted 1 | . . . . . . 1 Heat Transferred 1793 | . . . . 409 198 1186 Parts Sabotaged . | . . . . . . . Parts Stolen . | . . . . . . . Parts Stripped . | . . . . . . . Power Chain Reactions 6 | . . . . 4 1 1 Alert | -11 -10 -10 -10 -8 -7 -6 ------- Run | Yrd Mat Min Sub Mat Fac Fac Maximum Alert Level . | . . . . . . . Low Security (%) 100 | 100 100 100 . 100 100 100 Level 1 . | . . . . . . . Level 2 . | . . . . . . . Level 3 . | . . . . . . . Level 4 . | . . . . . . . Level 5 . | . . . . . . . High Security . | . . . . . . . Max Security . | . . . . . . . Peak Influence 194 | . 55 109 . 94 146 194 Initial 58 | . . . . . 15 58 Average 31 | . 16 15 . 22 82 40 Influence Increases 1304 | . 72 188 . 255 221 568 Destroy 0b10 Robot/C 640 | . 40 140 . 140 60 260 Destroy 0b10 Robot/NC 90 | . 5 15 . 15 20 35 Destroy Leader 154 | . 12 20 . 30 20 72 Successful Hack 38 | . . . . . . 38 Disable Machine 195 | . . . . 45 120 30 Destroy Structure 37 | . . 13 . 10 1 13 Lose Combat Pursuer 150 | . 15 . . 15 . 120 Influence Decreases 1185 | . 70 109 81 221 134 570 Entered New Map 127 | . . 2 43 . 19 63 Time Decay 772 | . 70 97 38 221 95 251 Lost Part 280 | . . 10 . . 20 250 Lost Ally 6 | . . . . . . 6 Squads Dispatched 16 | . 2 . . 4 1 9 Investigation 6 | . 1 . . 2 1 2 Extermination 2 | . . . . . . 2 Reinforcement 8 | . 1 . . 2 . 5 Assault . | . . . . . . . Garrison . | . . . . . . . Intercept . | . . . . . . . Searches Triggered . | . . . . . . . Construction Impeded 1 | . . . . . . 1 Haulers Reinforced . | . . . . . . . Active Scanning Responses . | . . . . . . . Cargo Convoy Interrupts . | . . . . . . . Stealth | -11 -10 -10 -10 -8 -7 -6 --------- Run | Yrd Mat Min Sub Mat Fac Fac Distress Signals 3 | . . . . 1 . 2 Communications Jammed . | . . . . . . . Distress Signals . | . . . . . . . Times Spotted 55 | . 4 7 1 9 3 31 Peak Tracking Total 8 | . 4 5 1 3 2 8 Tactical Retreats 8 | . 1 . . 1 . 6 Traps | -11 -10 -10 -10 -8 -7 -6 ------- Run | Yrd Mat Min Sub Mat Fac Fac Traps Triggered 3 | . . . . . 3 . Indirectly 2 | . . . . . 2 . Trap Hack Attempts . | . . . . . . . Triggered . | . . . . . . . Disarmed 6 | . . . . 6 . . Reprogrammed . | . . . . . . . Reused . | . . . . . . . Traps Extracted . | . . . . . . . Installed . | . . . . . . . Triggered . | . . . . . . . Machines | -11 -10 -10 -10 -8 -7 -6 ---------- Run | Yrd Mat Min Sub Mat Fac Fac Machines Disabled 13 | . . . . 3 8 2 Max in Single Turn 7 | . . . . 2 7 1 Machines Repaired . | . . . . . . . Machines Dismantled . | . . . . . . . Machines Sabotaged . | . . . . . . . Overloaded Fab Kills . | . . . . . . . Hacking | -11 -10 -10 -10 -8 -7 -6 --------- Run | Yrd Mat Min Sub Mat Fac Fac Machines Accessed 14 | . 2 . 1 4 2 5 Terminals 9 | . 2 . . 4 1 2 Fabricators 1 | . . . . . . 1 Repair Stations . | . . . . . . . Recycling Units 1 | . . . . . . 1 Scanalyzers 2 | . . . . . 1 1 Garrison Access . | . . . . . . . Total Hacks 52 | . 7 . 4 18 5 18 Successful 22 | . 1 . 4 7 2 8 Failed 29 | . 6 . . 11 3 9 Catastrophic 4 | . 1 . . 1 . 2 Database Lockouts 1 | . . . . . . 1 Manual . | . . . . . . . Terminals 34 | . 7 . . 18 2 7 Fabricators 5 | . . . . . . 5 Repair Stations . | . . . . . . . Recycling Units 1 | . . . . . . 1 Scanalyzers 8 | . . . . . 3 5 Garrison Access . | . . . . . . . Terminal Hacks 17 | . 1 . 4 7 1 4 Record 7 | . . . 4 1 . 2 Robot Analysis 1 | . . . . 1 . . Prototype ID Bank 1 | . . . . 1 . . Open DSF 1 | . . . . . . 1 Emergency Access Points 1 | . . . . 1 . . Alert Level 2 | . . . . 2 . . Disarm Traps 1 | . . . . 1 . . Investigation Status 1 | . . . . . . 1 Recall Reinforcements 1 | . 1 . . . . . Zone Layout 1 | . . . . . 1 . Fabricator Hacks 2 | . . . . . . 2 Network Status 1 | . . . . . . 1 Build 1 | . . . . . . 1 Repair Station Hacks . | . . . . . . . Recycling Unit Hacks . | . . . . . . . Scanalyzer 3 | . . . . . 1 2 Insert Component 1 | . . . . . . 1 Retrieve Study 2 | . . . . . 1 1 Garrison Access Hacks . | . . . . . . . Unauthorized Hacks . | . . . . . . . Terminals . | . . . . . . . Fabricators . | . . . . . . . Repair Stations . | . . . . . . . Recycling Units . | . . . . . . . Scanalyzers . | . . . . . . . Garrison Access . | . . . . . . . Data Cores Recovered . | . . . . . . . Used . | . . . . . . . Hacking Detections 12 | . 2 . . 4 2 4 Full Trace Events 6 | . 2 . . 1 1 2 Feedback Events . | . . . . . . . Feedback Blocked . | . . . . . . . Robot Schematics Acquired . | . . . . . . . Robots Built 2 | . . . . . . 2 Authchips . | . . . . . . . Time 81 | . . . . . . 81 Total Robot Build Rating 2 | . . . . . . 2 Part Schematics Acquired . | . . . . . . . Parts Built . | . . . . . . . Authchips . | . . . . . . . Time . | . . . . . . . Total Part Build Rating . | . . . . . . . Part Studies Acquired 2 | . . . . . 1 1 Parts Repaired . | . . . . . . . Time . | . . . . . . . Parts Recycled . | . . . . . . . Recycled Matter . | . . . . . . . Retrieved Matter . | . . . . . . . Retrieved Components . | . . . . . . . Parts Scanalyzed 1 | . . . . . . 1 Part Schematics Acquired . | . . . . . . . Parts Damaged . | . . . . . . . Bothacking | -11 -10 -10 -10 -8 -7 -6 ------------ Run | Yrd Mat Min Sub Mat Fac Fac Used RIF Installer . | . . . . . . . Robots Hacked . | . . . . . . . Non-combat . | . . . . . . . Combat . | . . . . . . . Robot Hacks Applied . | . . . . . . . Relay Couplers Released . | . . . . . . . Fabnet Peak Effective % . | . . . . . . . Robots Rewired . | . . . . . . . Allies Hacked . | . . . . . . . Hacks Repelled . | . . . . . . . Allies | -11 -10 -10 -10 -8 -7 -6 -------- Run | Yrd Mat Min Sub Mat Fac Fac Total Allies 3 | . . 1 . . . 2 Largest Group 2 | . . 1 . . . 2 Highest-Rated Group 31 | . . 31 . . . 19 Highest-Rated Ally 31 | . . 31 . . . 10 Total Orders 4 | . . . . . . 4 DROP 1 | . . . . . . 1 PICKUP 1 | . . . . . . 1 COLLECT 2 | . . . . . . 2 Ally Attacks . | . . . . . . . Total Damage . | . . . . . . . Kills . | . . . . . . . Allies Corrupted . | . . . . . . . Allies Melted . | . . . . . . . Intel | -11 -10 -10 -10 -8 -7 -6 ------- Run | Yrd Mat Min Sub Mat Fac Fac Active Infowar (turns) 989 | . . . . . . 989 Sensors 966 | . . . . . . 966 Terrain 161 | . . . . . . 161 Robot Analysis Total 1 | . . . . 1 . . Derelict Logs Recovered 2 | . . 1 1 . . . Drone Launches . | . . . . . . . Drone Recoveries . | . . . . . . . Exploration | -11 -10 -10 -10 -8 -7 -6 ------------- Run | Yrd Mat Min Sub Mat Fac Fac Turns Passed 4374 | 69 246 640 663 1068 242 1446 Spaces Moved 2252 | 48 186 318 379 585 119 617 Core 40 | 15 . . . . . 25 Treads 1844 | . . 242 379 585 119 519 Legs 221 | 33 118 . . . . 70 Wheels . | . . . . . . . Hover . | . . . . . . . Flight 147 | . 68 76 . . . 3 Fastest Speed 37 | 50 37 37 160 160 160 50 Average Speed 148 | 109 92 130 160 160 160 156 Slowest Speed 400 | 150 260 160 160 160 160 400 Overloaded Moves . | . . . . . . . Propulsion Burnouts . | . . . . . . . Robots Hopped . | . . . . . . . Potential Cave-ins 1 | . . 1 . . . . Cave-ins Triggered . | . . . . . . . Exploration Rate (%) 25 | 3 27 61 27 47 5 10 Regions Visited 6 Branch Regions 2 Pre-discovered Areas 1 | . . . 1 . . . Known Exits Taken 2 | . . . . 1 1 . Unknown Exits Taken 4 | 1 1 1 1 . . . Scrap Searched 2 | . . 2 . . . . Spaces Dug 17 | . . 17 . . . . Terrain Destroyed 38 | . . 17 . 11 1 9 Melee . | . . . . . . . Projectile 17 | . . 17 . . . . AOE 21 | . . . . 11 1 9 Terrain Rammed . | . . . . . . . Walls Destroyed . | . . . . . . . Machines Disabled . | . . . . . . . Actions | -11 -10 -10 -10 -8 -7 -6 --------- Run | Yrd Mat Min Sub Mat Fac Fac Total 2949 | 64 238 453 418 675 148 953 Wait 266 | . . 53 13 22 7 171 Move 2246 | 47 185 317 378 584 118 617 Hop . | . . . . . . . Pick Up 74 | 12 14 12 5 11 2 18 Fast Attach 28 | . 2 . . 3 2 21 Attach 46 | 5 5 8 3 5 3 17 Detach 5 | . 1 2 . . 1 1 Swap 38 | . 3 6 7 10 2 10 Drop 67 | . 14 10 5 13 2 23 Fire 174 | . 14 45 7 27 11 70 Melee 2 | . . . . . . 2 Ram 3 | . . . . . . 3 Kick . | . . . . . . . Crush . | . . . . . . . Escape Stasis . | . . . . . . . Rewire . | . . . . . . . Trap . | . . . . . . . Miscellaneous . | . . . . . . . Route ------- -11/Scrapyard -10/Materials -10/Mines (discovered 2 exits: [*Mat] / *Sub) -10/Subcaves -8/Materials -7/Factory -6/Factory (discovered 1 exit: [*Fac]) History --------- Turn | Location | Event 8 | -11/Scrapyard | Discovered new exit (range 16) 70 | -11/Scrapyard | Entered Materials 307 | -10/Materials | Discovered new exit (range 13) 316 | -10/Materials | Entered Mines 324 | -10/Mines | Build established: Mutant 326 | -10/Mines | Learned location of 1 exit from Materials 328 | -10/Mines | Discovered new exit (range 14) 536 | -10/Mines | Received a Mining Laser from a helpful Derelict 760 | -10/Mines | Discovered new exit (range 9) 872 | -10/Mines | Core integrity fell below 50% 956 | -10/Mines | Entered Subcaves 991 | -10/Subcaves | Shifting Twisted Machinery released Sub. Power Source 1014 | -10/Subcaves | Shifting Twisted Machinery released Sub. Monowheel 1362 | -10/Subcaves | Visited Clippyterm 1367 | -10/Subcaves | Learned Factory stockpile data 1607 | -10/Subcaves | Discovered new exit (range 5) 1615 | -10/Subcaves | Shifting Twisted Machinery released Spk. Treads 1618 | -10/Subcaves | Shifting Twisted Machinery released Sub. Beam Cannon 1619 | -10/Subcaves | Entered Materials 1619 | -8/Materials | Evolved 4 slots: Propulsion x2, Utility x2 1620 | -8/Materials | Identified exit to Factory 1716 | -8/Materials | Build established: Scavenger-Mutant 2067 | -8/Materials | Build established: Mutant 2687 | -8/Materials | Entered Factory 2687 | -7/Factory | Evolved 2 slots: Power x1, Weapon x1 2766 | -7/Factory | Discovered new exit (range 16) 2927 | -7/Factory | Identified exit to Factory 2929 | -7/Factory | Entered another Factory area 2929 | -6/Factory | Evolved 2 slots: Utility x1, Weapon x1 3065 | -6/Factory | Discovered new exit (range 7) 3155 | -6/Factory | Fabricated R-06 Scavenger (x2) 3504 | -6/Factory | Allied Derelicts emerged from ambush trap array 3615 | -6/Factory | Build established: Skirmisher 3787 | -6/Factory | Lost 3 allies 3943 | -6/Factory | Central database locked down 4056 | -6/Factory | Lost 4 parts (3n1u) 4329 | -6/Factory | Core integrity fell below 50% 4369 | -6/Factory | Core integrity fell below 20% 4370 | -6/Factory | Lost 16 parts (3p5n3u5w) 4375 | -6/Factory | Destroyed by G-50 Soldier with Heavy Laser Last Messages --------------- 04335_ Slammed into G-50 Soldier. 04335_ Surge Thruster destroyed. 04336_ Slammed into G-50 Soldier. 04336_ G-50 Soldier IFF system glitched. 04338_ U-05 Engineer suffers critical hit (Burn). 04339_ Slammed into G-50 Soldier. 04339_ Destabilizing: Core damaged (-8). 04339_ Fusion Compressor destroyed. 04342_ U-05 Engineer lays Concrete. 04342_ Acquired 14 matter. 04342_ K-01 Serf collects debris. 04343_ U-05 Engineer lays Concrete. 04346_ K-01 Serf collects debris. 04348_ Acquired Fission Core. 04361_ Acquired 2 matter. 04363_ Acquired 4 matter. 04368_ Acquired 14 matter. 04372_ Penetrated by Slug. 04373_ Imp. Cooling System destroyed. Map ----- +----------------------------------------------------+ | ??????????????????????? ?? #??? | | ????????????????????#?? ?? #??? | | ???????????????? #######+#################+##+#### | | ???????????" ????# ## = # | | ?????????????????# ## """" """" # | | ?????????????????# ## """" """" # | | ?????? ? ????????# ## """" """" # | | ?????????????????# ## """" """" # | | ???????????????#?# ## # | | ???????"????????## ## """" """" # | | ???????????? ???#########+"######### """" """" # | | ????????? ??? ???# ## " #??#??##! """" """" # | | ???????"????? ???#""" "" "##??????# """" """" # | | ?????"???????????#""" ## "#?????#?# [ # | | ??????????? ? ??##"S ## #######??########/###### | | ???????????"?????#""" ## ########### #???# | | ???? ????????????# "" ##% #???# | | ????????????????## ## ##??# | | ????????????????## ## T#??# | | ?????????? ??????# ##% #??# | | ?????????????? #?# / g%% ##### | | ??#????###? ?????# ## # | | ???????# # ## # | | ???????# ###+####g R + | | ???????# g % # | | ???????# k @ # | | ???? + t H ^ % """""" ###+#### | | ????? # """""" # ## | | ???????# """""" # ## | | ?????? # ###### """""" # ## | | ???????# ?????# """""" # ## | | ???????## ???#?## ! """""" # ### | | ????????# ??????# """""" ##"" #?? | | ??????? ???"???# """""" ##"" #?? | | ???????? ???????+ """""" ##""" #?? | | ???????? ????????# ##""" #?? | | ?????????? ?????"??# ##""" #?? | | ???????????? ?????????# t k ####### #?? | | ??????????????????????### ########?????# #?? | | ??????????? ????????????# #??#################?? | | ????????????????????????# #?? # """""" #???? | | ???????????############## #? =# """""" #???? | | ???????????# # #? # """""" #???? | | ???????????# """"""""" # # =# """""" #???? | | ???????????# # # # #???? | | ???????????# """"""""" + + # = #???? | | ???????????# # # # #???? | | ??????################### ######## #???? | | ??????# # ###########+######### | | ??????# # T" # | +----------------------------------------------------+ Best States ------------- Heat Dissipation 83 Energy Generation 45 Energy Capacity 520 Matter Stores 500 Matter Capacity 500 Sight Range 16 Robot Scan Range 16 Terrain Scan Range 20 Terrain Scan Density 10 Armor Coverage 375 Weapon Shielding 33 Evasion (%) 62 Recoil Reduction 4 Kinecelleration 30 Defensive Hacking 10 Item Schematics ----------------- None Robot Schematics ------------------ None Fabricated ------------ R-06 Scavenger | x2 | -6/Factory | Preloaded Repaired ---------- Nothing Studied --------- Lgt. Treads | -7/Factory | Hacked Lgt. Angular Momentum Engine | -6/Factory | Hacked Alien Tech Used ----------------- None Achievements -------------- I Spy My Command Is Your Wish Sprinter Challenges ------------ None Game ------ Seed HugeScimitarClaw Manual? 0 Play Time 01:20:37 Cumulative 15.7 hours Start 2026.06.23 @ 16:13:53 End 2026.06.28 @ 23:44:32 Sessions 3 Manual Loads 0 Difficulty Rogue Special Mode None Game No. 20 Rogue 20 Adventurer 0 Explorer 0 Win Type - Total 0 Types 0/0/0/0/0/0/0/0/0/0 Lore% 9 Gallery% 16 Achievement% 14 Wizard Run 0 Options --------- Layout 1 ASCII 0 Keyboard 0 Movement Mouse Keybinds 0 Fullscreen 1 Font 24/Smallcaps Map View 50x35 Zoom Use 0% Tactical HUD 1 Map Filters NONE Filters NONE Steam 1 RUN: a3933b70-35c5-4d5b-8c8f-2995df74d87b